Workbook

Sheet לוח מחוונים
N1: =BudgetName&" - תקציב אינטראקטיבי" -> משפחת כהן 2012 - תקציב אינטראקטיבי
A3: ='נתוני תרשים'!C38 -> ₪4000
D5: הכנסה
A7: ='נתוני תרשים'!C39 -> ₪5933
D9: הוצאות
A11: ='נתוני תרשים'!D40& "₪"&'נתוני תרשים'!C40 -> -₪1933
D13: תזרים מזומנים

Sheet תקציב
C1: ינו | D1: פבר | E1: מרץ | F1: אפר | G1: מאי | H1: יונ | I1: יול | J1: אוג | K1: ספט | L1: אוק | M1: נוב | N1: דצמ | O1: שנה | P1: ממוצע
B5: יתרה התחלתית | C5: 1000
B6: הכנסה כוללת | C6: =SUM(tblIncome[ינו]) -> 4222 | D6: =SUM(tblIncome[פבר]) -> 9033 | E6: =SUM(tblIncome[מרץ]) -> 4000 | F6: =SUM(tblIncome[אפר]) -> 4045 | G6: =SUM(tblIncome[מאי]) -> 9000 | H6: =SUM(tblIncome[יונ]) -> 1525 | I6: =SUM(tblIncome[יול]) -> 1500 | J6: =SUM(tblIncome[אוג]) -> 6500 | K6: =SUM(tblIncome[ספט]) -> 4000 | L6: =SUM(tblIncome[אוק]) -> 4000 | M6: =SUM(tblIncome[נוב]) -> 9000 | N6: =SUM(tblIncome[דצמ]) -> 4000 | O6: =SUM(tblIncome[שנים]) -> 60825 | P6: =O6/12 -> 5069
B7: הוצאה כוללת | C7: =SUM(tblExpenseCategory_01[ינו],tblExpenseCategory_02[ינו],tblExpenseCategory_03[ינו],tblExpenseCategory_04[ינו],tblExpenseCategory_05[ינו],tblExpenseCategory_06[ינו],tblExpenseCategory_07[ינו],tblExpenseCategory_08[ינו],tblExpenseCategory_09[ינו],tblExpenseCategory_10[ינו],tblExpenseCategory_11[ינו],tblExpenseCategory_12[ינו],tblExpenseCategory_13[ינו],tblExpenseCategory_14[ינו],tblExpenseCategory_15[ינו]) -> 7936 | D7: =SUM(tblExpenseCategory_01[פבר],tblExpenseCategory_02[פבר],tblExpenseCategory_03[פבר],tblExpenseCategory_04[פבר],tblExpenseCategory_05[פבר],tblExpenseCategory_06[פבר],tblExpenseCategory_07[פבר],tblExpenseCategory_08[פבר],tblExpenseCategory_09[פבר],tblExpenseCategory_10[פבר],tblExpenseCategory_11[פבר],tblExpenseCategory_12[פבר],tblExpenseCategory_13[פבר],tblExpenseCategory_14[פבר],tblExpenseCategory_15[פבר]) -> 5243 | E7: =SUM(tblExpenseCategory_01[מרץ],tblExpenseCategory_02[מרץ],tblExpenseCategory_03[מרץ],tblExpenseCategory_04[מרץ],tblExpenseCategory_05[מרץ],tblExpenseCategory_06[מרץ],tblExpenseCategory_07[מרץ],tblExpenseCategory_08[מרץ],tblExpenseCategory_09[מרץ],tblExpenseCategory_10[מרץ],tblExpenseCategory_11[מרץ],tblExpenseCategory_12[מרץ],tblExpenseCategory_13[מרץ],tblExpenseCategory_14[מרץ],tblExpenseCategory_15[מרץ]) -> 5933 | F7: =SUM(tblExpenseCategory_01[אפר],tblExpenseCategory_02[אפר],tblExpenseCategory_03[אפר],tblExpenseCategory_04[אפר],tblExpenseCategory_05[אפר],tblExpenseCategory_06[אפר],tblExpenseCategory_07[אפר],tblExpenseCategory_08[אפר],tblExpenseCategory_09[אפר],tblExpenseCategory_10[אפר],tblExpenseCategory_11[אפר],tblExpenseCategory_12[אפר],tblExpenseCategory_13[אפר],tblExpenseCategory_14[אפר],tblExpenseCategory_15[אפר]) -> 5858 | G7: =SUM(tblExpenseCategory_01[מאי],tblExpenseCategory_02[מאי],tblExpenseCategory_03[מאי],tblExpenseCategory_04[מאי],tblExpenseCategory_05[מאי],tblExpenseCategory_06[מאי],tblExpenseCategory_07[מאי],tblExpenseCategory_08[מאי],tblExpenseCategory_09[מאי],tblExpenseCategory_10[מאי],tblExpenseCategory_11[מאי],tblExpenseCategory_12[מאי],tblExpenseCategory_13[מאי],tblExpenseCategory_14[מאי],tblExpenseCategory_15[מאי]) -> 5468 | H7: =SUM(tblExpenseCategory_01[יונ],tblExpenseCategory_02[יונ],tblExpenseCategory_03[יונ],tblExpenseCategory_04[יונ],tblExpenseCategory_05[יונ],tblExpenseCategory_06[יונ],tblExpenseCategory_07[יונ],tblExpenseCategory_08[יונ],tblExpenseCategory_09[יונ],tblExpenseCategory_10[יונ],tblExpenseCategory_11[יונ],tblExpenseCategory_12[יונ],tblExpenseCategory_13[יונ],tblExpenseCategory_14[יונ],tblExpenseCategory_15[יונ]) -> 5118 | I7: =SUM(tblExpenseCategory_01[יול],tblExpenseCategory_02[יול],tblExpenseCategory_03[יול],tblExpenseCategory_04[יול],tblExpenseCategory_05[יול],tblExpenseCategory_06[יול],tblExpenseCategory_07[יול],tblExpenseCategory_08[יול],tblExpenseCategory_09[יול],tblExpenseCategory_10[יול],tblExpenseCategory_11[יול],tblExpenseCategory_12[יול],tblExpenseCategory_13[יול],tblExpenseCategory_14[יול],tblExpenseCategory_15[יול]) -> 5743 | J7: =SUM(tblExpenseCategory_01[אוג],tblExpenseCategory_02[אוג],tblExpenseCategory_03[אוג],tblExpenseCategory_04[אוג],tblExpenseCategory_05[אוג],tblExpenseCategory_06[אוג],tblExpenseCategory_07[אוג],tblExpenseCategory_08[אוג],tblExpenseCategory_09[אוג],tblExpenseCategory_10[אוג],tblExpenseCategory_11[אוג],tblExpenseCategory_12[אוג],tblExpenseCategory_13[אוג],tblExpenseCategory_14[אוג],tblExpenseCategory_15[אוג]) -> 5353 | K7: =SUM(tblExpenseCategory_01[ספט],tblExpenseCategory_02[ספט],tblExpenseCategory_03[ספט],tblExpenseCategory_04[ספט],tblExpenseCategory_05[ספט],tblExpenseCategory_06[ספט],tblExpenseCategory_07[ספט],tblExpenseCategory_08[ספט],tblExpenseCategory_09[ספט],tblExpenseCategory_10[ספט],tblExpenseCategory_11[ספט],tblExpenseCategory_12[ספט],tblExpenseCategory_13[ספט],tblExpenseCategory_14[ספט],tblExpenseCategory_15[ספט]) -> 5983 | L7: =SUM(tblExpenseCategory_01[אוק],tblExpenseCategory_02[אוק],tblExpenseCategory_03[אוק],tblExpenseCategory_04[אוק],tblExpenseCategory_05[אוק],tblExpenseCategory_06[אוק],tblExpenseCategory_07[אוק],tblExpenseCategory_08[אוק],tblExpenseCategory_09[אוק],tblExpenseCategory_10[אוק],tblExpenseCategory_11[אוק],tblExpenseCategory_12[אוק],tblExpenseCategory_13[אוק],tblExpenseCategory_14[אוק],tblExpenseCategory_15[אוק]) -> 5943 | M7: =SUM(tblExpenseCategory_01[נוב],tblExpenseCategory_02[נוב],tblExpenseCategory_03[נוב],tblExpenseCategory_04[נוב],tblExpenseCategory_05[נוב],tblExpenseCategory_06[נוב],tblExpenseCategory_07[נוב],tblExpenseCategory_08[נוב],tblExpenseCategory_09[נוב],tblExpenseCategory_10[נוב],tblExpenseCategory_11[נוב],tblExpenseCategory_12[נוב],tblExpenseCategory_13[נוב],tblExpenseCategory_14[נוב],tblExpenseCategory_15[נוב]) -> 5058 | N7: =SUM(tblExpenseCategory_01[דצמ],tblExpenseCategory_02[דצמ],tblExpenseCategory_03[דצמ],tblExpenseCategory_04[דצמ],tblExpenseCategory_05[דצמ],tblExpenseCategory_06[דצמ],tblExpenseCategory_07[דצמ],tblExpenseCategory_08[דצמ],tblExpenseCategory_09[דצמ],tblExpenseCategory_10[דצמ],tblExpenseCategory_11[דצמ],tblExpenseCategory_12[דצמ],tblExpenseCategory_13[דצמ],tblExpenseCategory_14[דצמ],tblExpenseCategory_15[דצמ]) -> 4958 | O7: =SUM(tblExpenseCategory_01[שנים],tblExpenseCategory_02[שנים],tblExpenseCategory_03[שנים],tblExpenseCategory_04[שנים],tblExpenseCategory_05[שנים],tblExpenseCategory_06[שנים],tblExpenseCategory_07[שנים],tblExpenseCategory_08[year],tblExpenseCategory_09[שנים],tblExpenseCategory_10[שנים],tblExpenseCategory_11[שנים],tblExpenseCategory_12[שנים],tblExpenseCategory_13[שנים],tblExpenseCategory_14[שנים],tblExpenseCategory_15[שנים]) -> 68594 | P7: =O7/12 -> 5716
B8: הכנסה נטו | C8: =C6-C7 -> -3714 | D8: =D6-D7 -> 3790 | E8: -1933 | F8: -1813 | G8: 3532 | H8: -3593 | I8: -4243 | J8: 1147 | K8: -1983 | L8: -1943 | M8: 3942 | N8: -958 | O8: -7769 | P8: =O8/12 -> -647
B9: תזרים מזומנים כולל | C9: =C5+C6-C7 -> -2714 | D9: =C9+D6-D7 -> 1076 | E9: =D9+E6-E7 -> -857 | F9: -2670 | G9: 862 | H9: -2731 | I9: -6974 | J9: -5827 | K9: -7810 | L9: -9753 | M9: -5811 | N9: -6769
B12: הכנסה
B13: שכר וטיפים | C13: 4000 | D13: 4000 | E13: 4000 | F13: 4000 | G13: 4000 | H13: 1000 | I13: 1000 | J13: 1000 | K13: 4000 | L13: 4000 | M13: 4000 | N13: 4000 | O13: =SUM(tblIncome[[#This Row],[ינו]:[דצמ]]) -> 39000 | P13: =tblIncome[[#This Row],[שנים]]/12 -> 3250
B14: הכנסה מריבית | C14: 222 | D14: 33 | F14: 45 | H14: 25 | O14: =SUM(tblIncome[[#This Row],[ינו]:[דצמ]]) -> 325 | P14: =tblIncome[[#This Row],[שנים]]/12 -> 27
B15: דיבידנדים | D15: 5000 | G15: 5000 | J15: 5000 | M15: 5000 | O15: =SUM(tblIncome[[#This Row],[ינו]:[דצמ]]) -> 20000 | P15: =tblIncome[[#This Row],[שנים]]/12 -> 1667
B16: החזרים כספיים/פיצויים | H16: 500 | I16: 500 | J16: 500 | O16: =SUM(tblIncome[[#This Row],[ינו]:[דצמ]]) -> 1500 | P16: =tblIncome[[#This Row],[שנים]]/12 -> 125
B17: אחר | O17: =SUM(tblIncome[[#This Row],[ינו]:[דצמ]]) -> 0 | P17: =tblIncome[[#This Row],[שנים]]/12 -> 0
B18: הכנסה כוללת | C18: =SUM(tblIncome[ינו]) -> 4222 | D18: =SUM(tblIncome[פבר]) -> 9033 | E18: =SUM(tblIncome[מרץ]) -> 4000 | F18: =SUM(tblIncome[אפר]) -> 4045 | G18: =SUM(tblIncome[מאי]) -> 9000 | H18: =SUM(tblIncome[יונ]) -> 1525 | I18: =SUM(tblIncome[יול]) -> 1500 | J18: =SUM(tblIncome[אוג]) -> 6500 | K18: =SUM(tblIncome[ספט]) -> 4000 | L18: =SUM(tblIncome[אוק]) -> 4000 | M18: =SUM(tblIncome[נוב]) -> 9000 | N18: =SUM(tblIncome[דצמ]) -> 4000 | O18: =SUM(tblIncome[שנים]) -> 60825 | P18: =tblIncome[[#Totals],[שנים]]/12 -> 5069
B21: בית
B22: משכנתא/שכירות | C22: 850 | D22: 850 | E22: 850 | F22: 850 | G22: 850 | H22: 850 | I22: 850 | J22: 850 | K22: 850 | L22: 850 | M22: 900 | N22: 900 | O22: =SUM(tblExpenseCategory_01[[#This Row],[ינו]:[דצמ]]) -> 10300 | P22: =tblExpenseCategory_01[[#This Row],[שנים]]/12 -> 858
B23: חשמל | C23: 200 | D23: 200 | E23: 175 | F23: 150 | G23: 150 | H23: 175 | I23: 225 | J23: 275 | K23: 200 | L23: 150 | M23: 150 | N23: 150 | O23: =SUM(tblExpenseCategory_01[[#This Row],[ינו]:[דצמ]]) -> 2200 | P23: =tblExpenseCategory_01[[#This Row],[שנים]]/12 -> 183
B24: טלפון | C24: 50 | D24: 50 | E24: 100 | F24: 100 | G24: 50 | H24: 50 | I24: 100 | J24: 100 | K24: 50 | L24: 50 | M24: 50 | N24: 50 | O24: =SUM(tblExpenseCategory_01[[#This Row],[ינו]:[דצמ]]) -> 800 | P24: =tblExpenseCategory_01[[#This Row],[שנים]]/12 -> 67
B25: כבלים/לוויין | C25: 69 | D25: 69 | E25: 69 | F25: 69 | G25: 69 | H25: 69 | I25: 69 | J25: 69 | K25: 69 | L25: 69 | M25: 69 | N25: 69 | O25: =SUM(tblExpenseCategory_01[[#This Row],[ינו]:[דצמ]]) -> 828 | P25: =tblExpenseCategory_01[[#This Row],[שנים]]/12 -> 69
B26: ריבית | C26: 39 | D26: 39 | E26: 39 | F26: 39 | G26: 39 | H26: 39 | I26: 39 | J26: 39 | K26: 39 | L26: 39 | M26: 39 | N26: 39 | O26: =SUM(tblExpenseCategory_01[[#This Row],[ינו]:[דצמ]]) -> 468 | P26: =tblExpenseCategory_01[[#This Row],[שנים]]/12 -> 39
B27: =UPPER("סה''כ "&B21) -> סה''כ בית | C27: =SUM(tblExpenseCategory_01[ינו]) -> 1208 | D27: =SUM(tblExpenseCategory_01[פבר]) -> 1208 | E27: =SUM(tblExpenseCategory_01[מרץ]) -> 1233 | F27: =SUM(tblExpenseCategory_01[אפר]) -> 1208 | G27: =SUM(tblExpenseCategory_01[מאי]) -> 1158 | H27: =SUM(tblExpenseCategory_01[יונ]) -> 1183 | I27: =SUM(tblExpenseCategory_01[יול]) -> 1283 | J27: =SUM(tblExpenseCategory_01[אוג]) -> 1333 | K27: =SUM(tblExpenseCategory_01[ספט]) -> 1208 | L27: =SUM(tblExpenseCategory_01[אוק]) -> 1158 | M27: =SUM(tblExpenseCategory_01[נוב]) -> 1208 | N27: =SUM(tblExpenseCategory_01[דצמ]) -> 1208 | O27: =SUM(tblExpenseCategory_01[שנים]) -> 14596 | P27: =tblExpenseCategory_01[[#Totals],[שנים]]/12 -> 1216
B30: פעולות יומיומיות
B31: מצרכים | C31: 345 | D31: 250 | E31: 200 | F31: 400 | G31: 350 | H31: 250 | I31: 400 | J31: 350 | K31: 250 | L31: 400 | M31: 350 | N31: 250 | O31: =SUM(tblExpenseCategory_02[[#This Row],[ינו]:[דצמ]]) -> 3795 | P31: =tblExpenseCategory_02[[#This Row],[שנים]]/12 -> 316
B32: ביגוד | C32: 300 | F32: 300 | I32: 300 | L32: 300 | O32: =SUM(tblExpenseCategory_02[[#This Row],[ינו]:[דצמ]]) -> 1200 | P32: =tblExpenseCategory_02[[#This Row],[שנים]]/12 -> 100
B33: ארוחות/מסעדות | C33: 125 | D33: 125 | E33: 300 | F33: 125 | G33: 125 | H33: 200 | I33: 125 | J33: 125 | K33: 125 | L33: 125 | M33: 125 | N33: 125 | O33: =SUM(tblExpenseCategory_02[[#This Row],[ינו]:[דצמ]]) -> 1750 | P33: =tblExpenseCategory_02[[#This Row],[שנים]]/12 -> 146
B34: מכון יופי/ספר | C34: 25 | E34: 50 | G34: 25 | I34: 50 | K34: 25 | M34: 100 | O34: =SUM(tblExpenseCategory_02[[#This Row],[ינו]:[דצמ]]) -> 275 | P34: =tblExpenseCategory_02[[#This Row],[שנים]]/12 -> 23
B35: אחר | O35: =SUM(tblExpenseCategory_02[[#This Row],[ינו]:[דצמ]]) -> 0 | P35: =tblExpenseCategory_02[[#This Row],[שנים]]/12 -> 0
B36: =UPPER("סה''כ "&B30) -> סה''כ פעולות יומיומיות | C36: =SUM(tblExpenseCategory_02[ינו]) -> 795 | D36: =SUM(tblExpenseCategory_02[פבר]) -> 375 | E36: =SUM(tblExpenseCategory_02[מרץ]) -> 550 | F36: =SUM(tblExpenseCategory_02[אפר]) -> 825 | G36: =SUM(tblExpenseCategory_02[מאי]) -> 500 | H36: =SUM(tblExpenseCategory_02[יונ]) -> 450 | I36: =SUM(tblExpenseCategory_02[יול]) -> 875 | J36: =SUM(tblExpenseCategory_02[אוג]) -> 475 | K36: =SUM(tblExpenseCategory_02[ספט]) -> 400 | L36: =SUM(tblExpenseCategory_02[אוק]) -> 825 | M36: =SUM(tblExpenseCategory_02[נוב]) -> 575 | N36: =SUM(tblExpenseCategory_02[דצמ]) -> 375 | O36: =SUM(tblExpenseCategory_02[שנים]) -> 7020 | P36: =tblExpenseCategory_02[[#Totals],[שנים]]/12 -> 585
B39: ילדים
B40: ציוד בית ספר | C40: 123 | E40: 100 | J40: 345 | O40: =SUM(tblExpenseCategory_03[[#This Row],[ינו]:[דצמ]]) -> 568 | P40: =tblExpenseCategory_03[[#This Row],[שנים]]/12 -> 47
B41: ביגוד | D41: 100 | G41: 100 | K41: 100 | N41: 100 | O41: =SUM(tblExpenseCategory_03[[#This Row],[ינו]:[דצמ]]) -> 400 | P41: =tblExpenseCategory_03[[#This Row],[שנים]]/12 -> 33
B42: ארוחת צהריים בבית הספר | C42: 50 | D42: 50 | E42: 50 | F42: 50 | G42: 50 | H42: 50 | K42: 50 | L42: 50 | M42: 50 | N42: 50 | O42: =SUM(tblExpenseCategory_03[[#This Row],[ינו]:[דצמ]]) -> 500 | P42: =tblExpenseCategory_03[[#This Row],[שנים]]/12 -> 42
B43: הוצאות רפואיות | C43: 200 | D43: 200 | E43: 200 | F43: 200 | G43: 200 | H43: 200 | I43: 200 | J43: 200 | K43: 200 | L43: 200 | M43: 200 | N43: 200 | O43: =SUM(tblExpenseCategory_03[[#This Row],[ינו]:[דצמ]]) -> 2400 | P43: =tblExpenseCategory_03[[#This Row],[שנים]]/12 -> 200
B44: אחר | C44: 2000 | D44: 150 | H44: 200 | L44: 100 | O44: =SUM(tblExpenseCategory_03[[#This Row],[ינו]:[דצמ]]) -> 2450 | P44: =tblExpenseCategory_03[[#This Row],[שנים]]/12 -> 204
B45: =UPPER("סה''כ "&B39) -> סה''כ ילדים | C45: =SUM(tblExpenseCategory_03[ינו]) -> 2373 | D45: =SUM(tblExpenseCategory_03[פבר]) -> 500 | E45: =SUM(tblExpenseCategory_03[מרץ]) -> 350 | F45: =SUM(tblExpenseCategory_03[אפר]) -> 250 | G45: =SUM(tblExpenseCategory_03[מאי]) -> 350 | H45: =SUM(tblExpenseCategory_03[יונ]) -> 450 | I45: =SUM(tblExpenseCategory_03[יול]) -> 200 | J45: =SUM(tblExpenseCategory_03[אוג]) -> 545 | K45: =SUM(tblExpenseCategory_03[ספט]) -> 350 | L45: =SUM(tblExpenseCategory_03[אוק]) -> 350 | M45: =SUM(tblExpenseCategory_03[נוב]) -> 250 | N45: =SUM(tblExpenseCategory_03[דצמ]) -> 350 | O45: =SUM(tblExpenseCategory_03[שנים]) -> 6318 | P45: =tblExpenseCategory_03[[#Totals],[שנים]]/12 -> 527
B48: תחבורה
B49: תשלומי רכב | C49: 600 | D49: 600 | E49: 600 | F49: 600 | G49: 600 | H49: 600 | I49: 600 | J49: 600 | K49: 600 | L49: 600 | M49: 600 | N49: 600 | O49: =SUM(tblExpenseCategory_04[[#This Row],[ינו]:[דצמ]]) -> 7200 | P49: =tblExpenseCategory_04[[#This Row],[שנים]]/12 -> 600
B50: דלק | C50: 325 | D50: 325 | E50: 325 | F50: 325 | G50: 325 | H50: 500 | I50: 500 | J50: 500 | K50: 325 | L50: 325 | M50: 325 | N50: 325 | O50: =SUM(tblExpenseCategory_04[[#This Row],[ינו]:[דצמ]]) -> 4425 | P50: =tblExpenseCategory_04[[#This Row],[שנים]]/12 -> 369
B51: תיקונים | D51: 100 | F51: 100 | H51: 100 | J51: 100 | L51: 100 | O51: =SUM(tblExpenseCategory_04[[#This Row],[ינו]:[דצמ]]) -> 500 | P51: =tblExpenseCategory_04[[#This Row],[שנים]]/12 -> 42
B52: רישום/רשיון | C52: 185 | K52: 225 | O52: =SUM(tblExpenseCategory_04[[#This Row],[ינו]:[דצמ]]) -> 410 | P52: =tblExpenseCategory_04[[#This Row],[שנים]]/12 -> 34
B53: אחר | G53: 400 | O53: =SUM(tblExpenseCategory_04[[#This Row],[ינו]:[דצמ]]) -> 400 | P53: =tblExpenseCategory_04[[#This Row],[שנים]]/12 -> 33
B54: =UPPER("סה''כ "&B48) -> סה''כ תחבורה | C54: =SUM(tblExpenseCategory_04[ינו]) -> 1110 | D54: =SUM(tblExpenseCategory_04[פבר]) -> 1025 | E54: =SUM(tblExpenseCategory_04[מרץ]) -> 925 | F54: =SUM(tblExpenseCategory_04[אפר]) -> 1025 | G54: =SUM(tblExpenseCategory_04[מאי]) -> 1325 | H54: =SUM(tblExpenseCategory_04[יונ]) -> 1200 | I54: =SUM(tblExpenseCategory_04[יול]) -> 1100 | J54: =SUM(tblExpenseCategory_04[אוג]) -> 1200 | K54: =SUM(tblExpenseCategory_04[ספט]) -> 1150 | L54: =SUM(tblExpenseCategory_04[אוק]) -> 1025 | M54: =SUM(tblExpenseCategory_04[נוב]) -> 925 | N54: =SUM(tblExpenseCategory_04[דצמ]) -> 925 | O54: =SUM(tblExpenseCategory_04[שנים]) -> 12935 | P54: =tblExpenseCategory_04[[#Totals],[שנים]]/12 -> 1078
B57: בריאות
B58: רופאים/רופאי שיניים | D58: 35 | G58: 35 | H58: 35 | I58: 35 | L58: 35 | O58: =SUM(tblExpenseCategory_05[[#This Row],[ינו]:[דצמ]]) -> 175 | P58: =tblExpenseCategory_05[[#This Row],[שנים]]/12 -> 15
B59: רפואה/תרופות | C59: 25 | D59: 25 | E59: 25 | F59: 25 | G59: 25 | H59: 25 | I59: 25 | J59: 25 | K59: 25 | L59: 25 | M59: 25 | N59: 25 | O59: =SUM(tblExpenseCategory_05[[#This Row],[ינו]:[דצמ]]) -> 300 | P59: =tblExpenseCategory_05[[#This Row],[שנים]]/12 -> 25
B60: אחר | E60: 150 | K60: 150 | O60: =SUM(tblExpenseCategory_05[[#This Row],[ינו]:[דצמ]]) -> 300 | P60: =tblExpenseCategory_05[[#This Row],[שנים]]/12 -> 25
B61: =UPPER("סה''כ "&B57) -> סה''כ בריאות | C61: =SUM(tblExpenseCategory_05[ינו]) -> 25 | D61: =SUM(tblExpenseCategory_05[פבר]) -> 60 | E61: =SUM(tblExpenseCategory_05[מרץ]) -> 175 | F61: =SUM(tblExpenseCategory_05[אפר]) -> 25 | G61: =SUM(tblExpenseCategory_05[מאי]) -> 60 | H61: =SUM(tblExpenseCategory_05[יונ]) -> 60 | I61: =SUM(tblExpenseCategory_05[יול]) -> 60 | J61: =SUM(tblExpenseCategory_05[אוג]) -> 25 | K61: =SUM(tblExpenseCategory_05[ספט]) -> 175 | L61: =SUM(tblExpenseCategory_05[אוק]) -> 60 | M61: =SUM(tblExpenseCategory_05[נוב]) -> 25 | N61: =SUM(tblExpenseCategory_05[דצמ]) -> 25 | O61: =SUM(tblExpenseCategory_05[שנים]) -> 775 | P61: =tblExpenseCategory_05[[#Totals],[שנים]]/12 -> 65
B64: ביטוח
B65: מכונית | C65: 150 | D65: 150 | E65: 150 | F65: 150 | G65: 150 | H65: 150 | I65: 150 | J65: 150 | K65: 150 | L65: 150 | M65: 150 | N65: 150 | O65: =SUM(tblExpenseCategory_06[[#This Row],[ינו]:[דצמ]]) -> 1800 | P65: =tblExpenseCategory_06[[#This Row],[שנים]]/12 -> 150
B66: בריאות | C66: 675 | D66: 675 | E66: 675 | F66: 675 | G66: 675 | H66: 675 | I66: 675 | J66: 675 | K66: 675 | L66: 675 | M66: 675 | N66: 675 | O66: =SUM(tblExpenseCategory_06[[#This Row],[ינו]:[דצמ]]) -> 8100 | P66: =tblExpenseCategory_06[[#This Row],[שנים]]/12 -> 675
B67: חיים | C67: 150 | D67: 150 | E67: 150 | F67: 150 | G67: 150 | H67: 150 | I67: 150 | J67: 150 | K67: 150 | L67: 150 | M67: 150 | N67: 150 | O67: =SUM(tblExpenseCategory_06[[#This Row],[ינו]:[דצמ]]) -> 1800 | P67: =tblExpenseCategory_06[[#This Row],[שנים]]/12 -> 150
B68: =UPPER("סה''כ "&B64) -> סה''כ ביטוח | C68: =SUM(tblExpenseCategory_06[ינו]) -> 975 | D68: =SUM(tblExpenseCategory_06[פבר]) -> 975 | E68: =SUM(tblExpenseCategory_06[מרץ]) -> 975 | F68: =SUM(tblExpenseCategory_06[אפר]) -> 975 | G68: =SUM(tblExpenseCategory_06[מאי]) -> 975 | H68: =SUM(tblExpenseCategory_06[יונ]) -> 975 | I68: =SUM(tblExpenseCategory_06[יול]) -> 975 | J68: =SUM(tblExpenseCategory_06[אוג]) -> 975 | K68: =SUM(tblExpenseCategory_06[ספט]) -> 975 | L68: =SUM(tblExpenseCategory_06[אוק]) -> 975 | M68: =SUM(tblExpenseCategory_06[נוב]) -> 975 | N68: =SUM(tblExpenseCategory_06[דצמ]) -> 975 | O68: =SUM(tblExpenseCategory_06[שנים]) -> 11700 | P68: =tblExpenseCategory_06[[#Totals],[שנים]]/12 -> 975
B71: חינוך
B72: שכר לימוד | E72: 400 | K72: 400 | O72: =SUM(tblExpenseCategory_07[[#This Row],[ינו]:[דצמ]]) -> 800 | P72: =tblExpenseCategory_07[[#This Row],[שנים]]/12 -> 67
B73: ספרים | E73: 225 | K73: 225 | O73: =SUM(tblExpenseCategory_07[[#This Row],[ינו]:[דצמ]]) -> 450 | P73: =tblExpenseCategory_07[[#This Row],[שנים]]/12 -> 38
B74: אחר | O74: =SUM(tblExpenseCategory_07[[#This Row],[ינו]:[דצמ]]) -> 0 | P74: =tblExpenseCategory_07[[#This Row],[שנים]]/12 -> 0
B75: =UPPER("סה''כ "&B71) -> סה''כ חינוך | C75: =SUM(tblExpenseCategory_07[ינו]) -> 0 | D75: =SUM(tblExpenseCategory_07[פבר]) -> 0 | E75: =SUM(tblExpenseCategory_07[מרץ]) -> 625 | F75: =SUM(tblExpenseCategory_07[אפר]) -> 0 | G75: =SUM(tblExpenseCategory_07[מאי]) -> 0 | H75: =SUM(tblExpenseCategory_07[יונ]) -> 0 | I75: =SUM(tblExpenseCategory_07[יול]) -> 0 | J75: =SUM(tblExpenseCategory_07[אוג]) -> 0 | K75: =SUM(tblExpenseCategory_07[ספט]) -> 625 | L75: =SUM(tblExpenseCategory_07[אוק]) -> 0 | M75: =SUM(tblExpenseCategory_07[נוב]) -> 0 | N75: =SUM(tblExpenseCategory_07[דצמ]) -> 0 | O75: =SUM(tblExpenseCategory_07[שנים]) -> 1250 | P75: =tblExpenseCategory_07[[#Totals],[שנים]]/12 -> 104
B78: צדקה
B79: מתנות שניתנו | D79: 100 | H79: 100 | L79: 100 | O79: =SUM(tblExpenseCategory_08[[#This Row],[ינו]:[דצמ]]) -> 300 | P79: =tblExpenseCategory_08[[#This Row],[year]]/12 -> 25
B80: תרומות לצדקה | E80: 100 | G80: 100 | I80: 100 | K80: 100 | M80: 100 | O80: =SUM(tblExpenseCategory_08[[#This Row],[ינו]:[דצמ]]) -> 500 | P80: =tblExpenseCategory_08[[#This Row],[year]]/12 -> 42
B81: אחר | F81: 100 | J81: 100 | N81: 100 | O81: =SUM(tblExpenseCategory_08[[#This Row],[ינו]:[דצמ]]) -> 300 | P81: =tblExpenseCategory_08[[#This Row],[year]]/12 -> 25
B82: =UPPER("סה''כ "&B78) -> סה''כ צדקה | C82: =SUM(tblExpenseCategory_08[ינו]) -> 0 | D82: =SUM(tblExpenseCategory_08[פבר]) -> 100 | E82: =SUM(tblExpenseCategory_08[מרץ]) -> 100 | F82: =SUM(tblExpenseCategory_08[אפר]) -> 100 | G82: =SUM(tblExpenseCategory_08[מאי]) -> 100 | H82: =SUM(tblExpenseCategory_08[יונ]) -> 100 | I82: =SUM(tblExpenseCategory_08[יול]) -> 100 | J82: =SUM(tblExpenseCategory_08[אוג]) -> 100 | K82: =SUM(tblExpenseCategory_08[ספט]) -> 100 | L82: =SUM(tblExpenseCategory_08[אוק]) -> 100 | M82: =SUM(tblExpenseCategory_08[נוב]) -> 100 | N82: =SUM(tblExpenseCategory_08[דצמ]) -> 100 | O82: =SUM(tblExpenseCategory_08[year]) -> 1100 | P82: =tblExpenseCategory_08[[#Totals],[year]]/12 -> 92
B85: חיסכון
B86: קרן חירום | C86: 100 | D86: 100 | E86: 100 | F86: 100 | G86: 100 | K86: 100 | L86: 100 | M86: 100 | N86: 100 | O86: =SUM(tblExpenseCategory_09[[#This Row],[ינו]:[דצמ]]) -> 900 | P86: =tblExpenseCategory_09[[#This Row],[שנים]]/12 -> 75
B87: פנסיה | C87: 500 | D87: 500 | E87: 500 | F87: 500 | G87: 500 | H87: 500 | I87: 500 | J87: 500 | K87: 500 | L87: 500 | M87: 500 | N87: 500 | O87: =SUM(tblExpenseCategory_09[[#This Row],[ינו]:[דצמ]]) -> 6000 | P87: =tblExpenseCategory_09[[#This Row],[שנים]]/12 -> 500
B88: העברה לחסכונות | C88: 200 | D88: 200 | E88: 200 | F88: 200 | G88: 200 | K88: 200 | L88: 200 | M88: 200 | N88: 200 | O88: =SUM(tblExpenseCategory_09[[#This Row],[ינו]:[דצמ]]) -> 1800 | P88: =tblExpenseCategory_09[[#This Row],[שנים]]/12 -> 150
B89: =UPPER("סה''כ "&B85) -> סה''כ חיסכון | C89: =SUM(tblExpenseCategory_09[ינו]) -> 800 | D89: =SUM(tblExpenseCategory_09[פבר]) -> 800 | E89: =SUM(tblExpenseCategory_09[מרץ]) -> 800 | F89: =SUM(tblExpenseCategory_09[אפר]) -> 800 | G89: =SUM(tblExpenseCategory_09[מאי]) -> 800 | H89: =SUM(tblExpenseCategory_09[יונ]) -> 500 | I89: =SUM(tblExpenseCategory_09[יול]) -> 500 | J89: =SUM(tblExpenseCategory_09[אוג]) -> 500 | K89: =SUM(tblExpenseCategory_09[ספט]) -> 800 | L89: =SUM(tblExpenseCategory_09[אוק]) -> 800 | M89: =SUM(tblExpenseCategory_09[נוב]) -> 800 | N89: =SUM(tblExpenseCategory_09[דצמ]) -> 800 | O89: =SUM(tblExpenseCategory_09[שנים]) -> 8700 | P89: =tblExpenseCategory_09[[#Totals],[שנים]]/12 -> 725
B92: התחייבויות
B93: כרטיס אשראי | C93: 145 | D93: 145 | E93: 145 | F93: 145 | G93: 145 | H93: 145 | I93: 145 | J93: 145 | K93: 145 | L93: 145 | M93: 145 | N93: 145 | O93: =SUM(tblExpenseCategory_10[[#This Row],[ינו]:[דצמ]]) -> 1740 | P93: =tblExpenseCategory_10[[#This Row],[שנים]]/12 -> 145
B94: מסי מדינה | C94: 450 | F94: 450 | I94: 450 | L94: 450 | O94: =SUM(tblExpenseCategory_10[[#This Row],[ינו]:[דצמ]]) -> 1800 | P94: =tblExpenseCategory_10[[#This Row],[שנים]]/12 -> 150
B95: הלוואת סטודנט | C95: 55 | D95: 55 | E95: 55 | F95: 55 | G95: 55 | H95: 55 | I95: 55 | J95: 55 | K95: 55 | L95: 55 | M95: 55 | N95: 55 | O95: =SUM(tblExpenseCategory_10[[#This Row],[ינו]:[דצמ]]) -> 660 | P95: =tblExpenseCategory_10[[#This Row],[שנים]]/12 -> 55
B96: =UPPER("סה''כ "&B92) -> סה''כ התחייבויות | C96: =SUM(tblExpenseCategory_10[ינו]) -> 650 | D96: =SUM(tblExpenseCategory_10[פבר]) -> 200 | E96: =SUM(tblExpenseCategory_10[מרץ]) -> 200 | F96: =SUM(tblExpenseCategory_10[אפר]) -> 650 | G96: =SUM(tblExpenseCategory_10[מאי]) -> 200 | H96: =SUM(tblExpenseCategory_10[יונ]) -> 200 | I96: =SUM(tblExpenseCategory_10[יול]) -> 650 | J96: =SUM(tblExpenseCategory_10[אוג]) -> 200 | K96: =SUM(tblExpenseCategory_10[ספט]) -> 200 | L96: =SUM(tblExpenseCategory_10[אוק]) -> 650 | M96: =SUM(tblExpenseCategory_10[נוב]) -> 200 | N96: =SUM(tblExpenseCategory_10[דצמ]) -> 200 | O96: =SUM(tblExpenseCategory_10[שנים]) -> 4200 | P96: =tblExpenseCategory_10[[#Totals],[שנים]]/12 -> 350
O100: =SUM(tblExpenseCategory_11[[#This Row],[ינו]:[דצמ]]) -> 0 | P100: =tblExpenseCategory_11[[#This Row],[שנים]]/12 -> 0
O101: =SUM(tblExpenseCategory_11[[#This Row],[ינו]:[דצמ]]) -> 0 | P101: =tblExpenseCategory_11[[#This Row],[שנים]]/12 -> 0
O102: =SUM(tblExpenseCategory_11[[#This Row],[ינו]:[דצמ]]) -> 0 | P102: =tblExpenseCategory_11[[#This Row],[שנים]]/12 -> 0
B103: =UPPER("סה''כ "&B99) -> סה''כ | C103: =SUM(tblExpenseCategory_11[ינו]) -> 0 | D103: =SUM(tblExpenseCategory_11[פבר]) -> 0 | E103: =SUM(tblExpenseCategory_11[מרץ]) -> 0 | F103: =SUM(tblExpenseCategory_11[אפר]) -> 0 | G103: =SUM(tblExpenseCategory_11[מאי]) -> 0 | H103: =SUM(tblExpenseCategory_11[יונ]) -> 0 | I103: =SUM(tblExpenseCategory_11[יול]) -> 0 | J103: =SUM(tblExpenseCategory_11[אוג]) -> 0 | K103: =SUM(tblExpenseCategory_11[ספט]) -> 0 | L103: =SUM(tblExpenseCategory_11[אוק]) -> 0 | M103: =SUM(tblExpenseCategory_11[נוב]) -> 0 | N103: =SUM(tblExpenseCategory_11[דצמ]) -> 0 | O103: =SUM(tblExpenseCategory_11[שנים]) -> 0 | P103: =tblExpenseCategory_11[[#Totals],[שנים]]/12 -> 0
O108: =SUM(tblExpenseCategory_12[[#This Row],[ינו]:[דצמ]]) -> 0 | P108: =tblExpenseCategory_12[[#This Row],[שנים]]/12 -> 0
O109: =SUM(tblExpenseCategory_12[[#This Row],[ינו]:[דצמ]]) -> 0 | P109: =tblExpenseCategory_12[[#This Row],[שנים]]/12 -> 0
O110: =SUM(tblExpenseCategory_12[[#This Row],[ינו]:[דצמ]]) -> 0 | P110: =tblExpenseCategory_12[[#This Row],[שנים]]/12 -> 0
B111: =UPPER("סה''כ "&B106) -> סה''כ | C111: =SUM(tblExpenseCategory_12[ינו]) -> 0 | D111: =SUM(tblExpenseCategory_12[פבר]) -> 0 | E111: =SUM(tblExpenseCategory_12[מרץ]) -> 0 | F111: =SUM(tblExpenseCategory_12[אפר]) -> 0 | G111: =SUM(tblExpenseCategory_12[מאי]) -> 0 | H111: =SUM(tblExpenseCategory_12[יונ]) -> 0 | I111: =SUM(tblExpenseCategory_12[יול]) -> 0 | J111: =SUM(tblExpenseCategory_12[אוג]) -> 0 | K111: =SUM(tblExpenseCategory_12[ספט]) -> 0 | L111: =SUM(tblExpenseCategory_12[אוק]) -> 0 | M111: =SUM(tblExpenseCategory_12[נוב]) -> 0 | N111: =SUM(tblExpenseCategory_12[דצמ]) -> 0 | O111: =SUM(tblExpenseCategory_12[שנים]) -> 0 | P111: =tblExpenseCategory_12[[#Totals],[שנים]]/12 -> 0
O115: =SUM(tblExpenseCategory_13[[#This Row],[ינו]:[דצמ]]) -> 0 | P115: =tblExpenseCategory_13[[#This Row],[שנים]]/12 -> 0
O116: =SUM(tblExpenseCategory_13[[#This Row],[ינו]:[דצמ]]) -> 0 | P116: =tblExpenseCategory_13[[#This Row],[שנים]]/12 -> 0
O117: =SUM(tblExpenseCategory_13[[#This Row],[ינו]:[דצמ]]) -> 0 | P117: =tblExpenseCategory_13[[#This Row],[שנים]]/12 -> 0
B118: =UPPER("סה''כ "&B114) -> סה''כ | C118: =SUM(tblExpenseCategory_13[ינו]) -> 0 | D118: =SUM(tblExpenseCategory_13[פבר]) -> 0 | E118: =SUM(tblExpenseCategory_13[מרץ]) -> 0 | F118: =SUM(tblExpenseCategory_13[אפר]) -> 0 | G118: =SUM(tblExpenseCategory_13[מאי]) -> 0 | H118: =SUM(tblExpenseCategory_13[יונ]) -> 0 | I118: =SUM(tblExpenseCategory_13[יול]) -> 0 | J118: =SUM(tblExpenseCategory_13[אוג]) -> 0 | K118: =SUM(tblExpenseCategory_13[ספט]) -> 0 | L118: =SUM(tblExpenseCategory_13[אוק]) -> 0 | M118: =SUM(tblExpenseCategory_13[נוב]) -> 0 | N118: =SUM(tblExpenseCategory_13[דצמ]) -> 0 | O118: =SUM(tblExpenseCategory_13[שנים]) -> 0 | P118: =tblExpenseCategory_13[[#Totals],[שנים]]/12 -> 0
O122: =SUM(tblExpenseCategory_14[[#This Row],[ינו]:[דצמ]]) -> 0 | P122: =tblExpenseCategory_14[[#This Row],[שנים]]/12 -> 0
O123: =SUM(tblExpenseCategory_14[[#This Row],[ינו]:[דצמ]]) -> 0 | P123: =tblExpenseCategory_14[[#This Row],[שנים]]/12 -> 0
O124: =SUM(tblExpenseCategory_14[[#This Row],[ינו]:[דצמ]]) -> 0 | P124: =tblExpenseCategory_14[[#This Row],[שנים]]/12 -> 0
B125: =UPPER("סה''כ "&B121) -> סה''כ | C125: =SUM(tblExpenseCategory_14[ינו]) -> 0 | D125: =SUM(tblExpenseCategory_14[פבר]) -> 0 | E125: =SUM(tblExpenseCategory_14[מרץ]) -> 0 | F125: =SUM(tblExpenseCategory_14[אפר]) -> 0 | G125: =SUM(tblExpenseCategory_14[מאי]) -> 0 | H125: =SUM(tblExpenseCategory_14[יונ]) -> 0 | I125: =SUM(tblExpenseCategory_14[יול]) -> 0 | J125: =SUM(tblExpenseCategory_14[אוג]) -> 0 | K125: =SUM(tblExpenseCategory_14[ספט]) -> 0 | L125: =SUM(tblExpenseCategory_14[אוק]) -> 0 | M125: =SUM(tblExpenseCategory_14[נוב]) -> 0 | N125: =SUM(tblExpenseCategory_14[דצמ]) -> 0 | O125: =SUM(tblExpenseCategory_14[שנים]) -> 0 | P125: =tblExpenseCategory_14[[#Totals],[שנים]]/12 -> 0
O129: =SUM(tblExpenseCategory_15[[#This Row],[ינו]:[דצמ]]) -> 0 | P129: =tblExpenseCategory_15[[#This Row],[שנים]]/12 -> 0
O130: =SUM(tblExpenseCategory_15[[#This Row],[ינו]:[דצמ]]) -> 0 | P130: =tblExpenseCategory_15[[#This Row],[שנים]]/12 -> 0
O131: =SUM(tblExpenseCategory_15[[#This Row],[ינו]:[דצמ]]) -> 0 | P131: =tblExpenseCategory_15[[#This Row],[שנים]]/12 -> 0
B132: =UPPER("סה''כ "&B128) -> סה''כ | C132: =SUM(tblExpenseCategory_15[ינו]) -> 0 | D132: =SUM(tblExpenseCategory_15[פבר]) -> 0 | E132: =SUM(tblExpenseCategory_15[מרץ]) -> 0 | F132: =SUM(tblExpenseCategory_15[אפר]) -> 0 | G132: =SUM(tblExpenseCategory_15[מאי]) -> 0 | H132: =SUM(tblExpenseCategory_15[יונ]) -> 0 | I132: =SUM(tblExpenseCategory_15[יול]) -> 0 | J132: =SUM(tblExpenseCategory_15[אוג]) -> 0 | K132: =SUM(tblExpenseCategory_15[ספט]) -> 0 | L132: =SUM(tblExpenseCategory_15[אוק]) -> 0 | M132: =SUM(tblExpenseCategory_15[נוב]) -> 0 | N132: =SUM(tblExpenseCategory_15[דצמ]) -> 0 | O132: =SUM(tblExpenseCategory_15[שנים]) -> 0 | P132: =tblExpenseCategory_15[[#Totals],[שנים]]/12 -> 0

Sheet הגדרה
B1: משפחת כהן 2012
B2: הכנסה | D2: הוצאות
B3: שכר וטיפים
B4: הכנסה מריבית | D4: בית | F4: בית | H4: פעולות יומיומיות | J4: ילדים
B5: דיבידנדים | D5: פעולות יומיומיות | F5: משכנתא/שכירות | H5: מצרכים | J5: הוצאות רפואיות
B6: מתנות שהתקבלו | D6: ילדים | F6: חשמל | H6: ציוד אישי | J6: ביגוד
B7: החזרים כספיים/פיצויים | D7: תחבורה | F7: גז/דלק | H7: ביגוד | J7: שכר לימוד לבית הספר
B8: משיכה מחסכונות | D8: בריאות | F8: מים/ביוב/אשפה | H8: שירותי ניקיון | J8: ארוחת צהריים בבית הספר
B9: אחר | D9: ביטוח | F9: טלפון | H9: ארוחות/מסעדות | J9: ציוד בית ספר
D10: חינוך | F10: כבלים/לוויין | H10: ניקוי יבש | J10: שמרטפות
D11: צדקה | F11: ריבית | H11: מכון יופי/ספר | J11: צעצועים/משחקים
D12: חסכונות | F12: ריהוט/מכשירים | H12: אחר | J12: אחר
D13: התחייבויות | F13: מדשאה/גינה
D14: בידור | F14: ציוד ביתי
D15: חיות מחמד | F15: תחזוקה
D16: מנויים | F16: שיפורים
D17: חופשה | F17: אחר
D18: שונות
F20: תחבורה | H20: בריאות | J20: ביטוח
F21: תשלומי רכב | H21: רופאים/רופאי שיניים | J21: מכונית
F22: דלק | H22: רפואה/תרופות | J22: בריאות
F23: דמי נסיעה באוטובוס/מונית/רכבת | H23: תשלומים למועדון בריאות | J23: בית/שכירות
F24: תיקונים | H24: חירום | J24: חיים
F25: רישום/רשיון | H25: אחר | J25: אחר
F26: אחר
F29: חינוך | H29: צדקה | J29: חסכונות
F30: שכר לימוד | H30: מתנות שניתנו | J30: קרן חירום
F31: ספרים | H31: תרומות לצדקה | J31: העברה לחסכונות
F32: שיעורי מוסיקה | H32: תרומות דת | J32: פנסיה
F33: אחר | H33: אחר | J33: השקעות
J34: מכללה
J35: אחר
F38: התחייבויות | H38: בידור | J38: חיות מחמד
F39: הלוואת סטודנט | H39: קלטות וידאו/DVD | J39: מזון
F40: הלוואה אחרת | H40: מוסיקה | J40: הוצאות רפואיות
F41: כרטיס אשראי 1 | H41: משחקים | J41: צעצועים/ציוד
F42: כרטיס אשראי 2 | H42: השכרות | J42: אחר
F43: כרטיס אשראי 3 | H43: קולנוע/תיאטרון
F44: מזונות/תמיכה לילדים | H44: מופעים/מחזות
F45: מסי מדינה | H45: ספרים
F46: מס רכוש | H46: תחביבים
F47: מסים עירוניים | H47: צילום
F48: תשלום לוועד בית | H48: ספורט
F49: הוצאות משפטיות | H49: בילויים מחוץ לבית
F50: אחר | H50: צעצועים/גאדג'טים
H51: אחר
F53: מנויים | H53: חופשה | J53: שונות
F54: עיתונים | H54: נסיעות | J54: עמלות בנק
F55: מגזינים | H55: לינה | J55: דואר
F56: אגרות | H56: מזון | J56: אחר
F57: חברויות במועדונים | H57: השכרת רכב
F58: אחר | H58: בידור
H59: אחר

Sheet נתוני תרשים (hidden)
B1: *** גיליון זה צריך להישאר מוסתר ***
B4: תקופה | C4: 3
C6: ינו | D6: פבר | E6: מרץ | F6: אפר | G6: מאי | H6: יונ | I6: יול | J6: אוג | K6: ספט | L6: אוק | M6: נוב | N6: דצמ | O6: שנה | P6: ממוצע
B7: =LOWER(תקציב!B128) ->  | C7: =SUM(tblExpenseCategory_15[ינו]) -> 0 | D7: =SUM(tblExpenseCategory_15[פבר]) -> 0 | E7: =SUM(tblExpenseCategory_15[מרץ]) -> 0 | F7: =SUM(tblExpenseCategory_15[אפר]) -> 0 | G7: =SUM(tblExpenseCategory_15[מאי]) -> 0 | H7: =SUM(tblExpenseCategory_15[יונ]) -> 0 | I7: =SUM(tblExpenseCategory_15[יול]) -> 0 | J7: =SUM(tblExpenseCategory_15[אוג]) -> 0 | K7: =SUM(tblExpenseCategory_15[ספט]) -> 0 | L7: =SUM(tblExpenseCategory_15[אוק]) -> 0 | M7: =SUM(tblExpenseCategory_15[נוב]) -> 0 | N7: =SUM(tblExpenseCategory_15[דצמ]) -> 0 | O7: =SUM(tblExpenseCategory_15[שנים]) -> 0 | P7: =SUM(tblExpenseCategory_15[ממוצע]) -> 0
B8: =LOWER(תקציב!B121) ->  | C8: =SUM(tblExpenseCategory_14[ינו]) -> 0 | D8: =SUM(tblExpenseCategory_14[פבר]) -> 0 | E8: =SUM(tblExpenseCategory_14[מרץ]) -> 0 | F8: =SUM(tblExpenseCategory_14[אפר]) -> 0 | G8: =SUM(tblExpenseCategory_14[מאי]) -> 0 | H8: =SUM(tblExpenseCategory_14[יונ]) -> 0 | I8: =SUM(tblExpenseCategory_14[יול]) -> 0 | J8: =SUM(tblExpenseCategory_14[אוג]) -> 0 | K8: =SUM(tblExpenseCategory_14[ספט]) -> 0 | L8: =SUM(tblExpenseCategory_14[אוק]) -> 0 | M8: =SUM(tblExpenseCategory_14[נוב]) -> 0 | N8: =SUM(tblExpenseCategory_14[דצמ]) -> 0 | O8: =SUM(tblExpenseCategory_14[שנים]) -> 0 | P8: =SUM(tblExpenseCategory_14[ממוצע]) -> 0
B9: =LOWER(תקציב!B114) ->  | C9: =SUM(tblExpenseCategory_13[ינו]) -> 0 | D9: =SUM(tblExpenseCategory_13[פבר]) -> 0 | E9: =SUM(tblExpenseCategory_13[מרץ]) -> 0 | F9: =SUM(tblExpenseCategory_13[אפר]) -> 0 | G9: =SUM(tblExpenseCategory_13[מאי]) -> 0 | H9: =SUM(tblExpenseCategory_13[יונ]) -> 0 | I9: =SUM(tblExpenseCategory_13[יול]) -> 0 | J9: =SUM(tblExpenseCategory_13[אוג]) -> 0 | K9: =SUM(tblExpenseCategory_13[ספט]) -> 0 | L9: =SUM(tblExpenseCategory_13[אוק]) -> 0 | M9: =SUM(tblExpenseCategory_13[נוב]) -> 0 | N9: =SUM(tblExpenseCategory_13[דצמ]) -> 0 | O9: =SUM(tblExpenseCategory_13[שנים]) -> 0 | P9: =SUM(tblExpenseCategory_13[ממוצע]) -> 0
B10: =LOWER(תקציב!B106) ->  | C10: =SUM(tblExpenseCategory_12[ינו]) -> 0 | D10: =SUM(tblExpenseCategory_12[פבר]) -> 0 | E10: =SUM(tblExpenseCategory_12[מרץ]) -> 0 | F10: =SUM(tblExpenseCategory_12[אפר]) -> 0 | G10: =SUM(tblExpenseCategory_12[מאי]) -> 0 | H10: =SUM(tblExpenseCategory_12[יונ]) -> 0 | I10: =SUM(tblExpenseCategory_12[יול]) -> 0 | J10: =SUM(tblExpenseCategory_12[אוג]) -> 0 | K10: =SUM(tblExpenseCategory_12[ספט]) -> 0 | L10: =SUM(tblExpenseCategory_12[אוק]) -> 0 | M10: =SUM(tblExpenseCategory_12[נוב]) -> 0 | N10: =SUM(tblExpenseCategory_12[דצמ]) -> 0 | O10: =SUM(tblExpenseCategory_12[שנים]) -> 0 | P10: =SUM(tblExpenseCategory_12[ממוצע]) -> 0
B11: =LOWER(תקציב!B99) ->  | C11: =SUM(tblExpenseCategory_11[ינו]) -> 0 | D11: =SUM(tblExpenseCategory_11[פבר]) -> 0 | E11: =SUM(tblExpenseCategory_11[מרץ]) -> 0 | F11: =SUM(tblExpenseCategory_11[אפר]) -> 0 | G11: =SUM(tblExpenseCategory_11[מאי]) -> 0 | H11: =SUM(tblExpenseCategory_11[יונ]) -> 0 | I11: =SUM(tblExpenseCategory_11[יול]) -> 0 | J11: =SUM(tblExpenseCategory_11[אוג]) -> 0 | K11: =SUM(tblExpenseCategory_11[ספט]) -> 0 | L11: =SUM(tblExpenseCategory_11[אוק]) -> 0 | M11: =SUM(tblExpenseCategory_11[נוב]) -> 0 | N11: =SUM(tblExpenseCategory_11[דצמ]) -> 0 | O11: =SUM(tblExpenseCategory_11[שנים]) -> 0 | P11: =SUM(tblExpenseCategory_11[ממוצע]) -> 0
B12: =LOWER(תקציב!B92) -> התחייבויות | C12: =SUM(tblExpenseCategory_10[ינו]) -> 650 | D12: =SUM(tblExpenseCategory_10[פבר]) -> 200 | E12: =SUM(tblExpenseCategory_10[מרץ]) -> 200 | F12: =SUM(tblExpenseCategory_10[אפר]) -> 650 | G12: =SUM(tblExpenseCategory_10[מאי]) -> 200 | H12: =SUM(tblExpenseCategory_10[יונ]) -> 200 | I12: =SUM(tblExpenseCategory_10[יול]) -> 650 | J12: =SUM(tblExpenseCategory_10[אוג]) -> 200 | K12: =SUM(tblExpenseCategory_10[ספט]) -> 200 | L12: =SUM(tblExpenseCategory_10[אוק]) -> 650 | M12: =SUM(tblExpenseCategory_10[נוב]) -> 200 | N12: =SUM(tblExpenseCategory_10[דצמ]) -> 200 | O12: =SUM(tblExpenseCategory_10[שנים]) -> 4,200 | P12: =SUM(tblExpenseCategory_10[ממוצע]) -> 350
B13: =LOWER(תקציב!B85) -> חיסכון | C13: =SUM(tblExpenseCategory_09[ינו]) -> 800 | D13: =SUM(tblExpenseCategory_09[פבר]) -> 800 | E13: =SUM(tblExpenseCategory_09[מרץ]) -> 800 | F13: =SUM(tblExpenseCategory_09[אפר]) -> 800 | G13: =SUM(tblExpenseCategory_09[מאי]) -> 800 | H13: =SUM(tblExpenseCategory_09[יונ]) -> 500 | I13: =SUM(tblExpenseCategory_09[יול]) -> 500 | J13: =SUM(tblExpenseCategory_09[אוג]) -> 500 | K13: =SUM(tblExpenseCategory_09[ספט]) -> 800 | L13: =SUM(tblExpenseCategory_09[אוק]) -> 800 | M13: =SUM(tblExpenseCategory_09[נוב]) -> 800 | N13: =SUM(tblExpenseCategory_09[דצמ]) -> 800 | O13: =SUM(tblExpenseCategory_09[שנים]) -> 8,700 | P13: =SUM(tblExpenseCategory_09[ממוצע]) -> 725
B14: =LOWER(תקציב!B78) -> צדקה | C14: =SUM(tblExpenseCategory_08[ינו]) -> 0 | D14: =SUM(tblExpenseCategory_08[פבר]) -> 100 | E14: =SUM(tblExpenseCategory_08[מרץ]) -> 100 | F14: =SUM(tblExpenseCategory_08[אפר]) -> 100 | G14: =SUM(tblExpenseCategory_08[מאי]) -> 100 | H14: =SUM(tblExpenseCategory_08[יונ]) -> 100 | I14: =SUM(tblExpenseCategory_08[יול]) -> 100 | J14: =SUM(tblExpenseCategory_08[אוג]) -> 100 | K14: =SUM(tblExpenseCategory_08[ספט]) -> 100 | L14: =SUM(tblExpenseCategory_08[אוק]) -> 100 | M14: =SUM(tblExpenseCategory_08[נוב]) -> 100 | N14: =SUM(tblExpenseCategory_08[דצמ]) -> 100 | O14: =SUM(tblExpenseCategory_08[year]) -> 1,100 | P14: =SUM(tblExpenseCategory_08[ממוצע]) -> 92
B15: =LOWER(תקציב!B71) -> חינוך | C15: =SUM(tblExpenseCategory_07[ינו]) -> 0 | D15: =SUM(tblExpenseCategory_07[פבר]) -> 0 | E15: =SUM(tblExpenseCategory_07[מרץ]) -> 625 | F15: =SUM(tblExpenseCategory_07[אפר]) -> 0 | G15: =SUM(tblExpenseCategory_07[מאי]) -> 0 | H15: =SUM(tblExpenseCategory_07[יונ]) -> 0 | I15: =SUM(tblExpenseCategory_07[יול]) -> 0 | J15: =SUM(tblExpenseCategory_07[אוג]) -> 0 | K15: =SUM(tblExpenseCategory_07[ספט]) -> 625 | L15: =SUM(tblExpenseCategory_07[אוק]) -> 0 | M15: =SUM(tblExpenseCategory_07[נוב]) -> 0 | N15: =SUM(tblExpenseCategory_07[דצמ]) -> 0 | O15: =SUM(tblExpenseCategory_07[שנים]) -> 1,250 | P15: =SUM(tblExpenseCategory_07[ממוצע]) -> 104
B16: =LOWER(תקציב!B64) -> ביטוח | C16: =SUM(tblExpenseCategory_06[ינו]) -> 975 | D16: =SUM(tblExpenseCategory_06[פבר]) -> 975 | E16: =SUM(tblExpenseCategory_06[מרץ]) -> 975 | F16: =SUM(tblExpenseCategory_06[אפר]) -> 975 | G16: =SUM(tblExpenseCategory_06[מאי]) -> 975 | H16: =SUM(tblExpenseCategory_06[יונ]) -> 975 | I16: =SUM(tblExpenseCategory_06[יול]) -> 975 | J16: =SUM(tblExpenseCategory_06[אוג]) -> 975 | K16: =SUM(tblExpenseCategory_06[ספט]) -> 975 | L16: =SUM(tblExpenseCategory_06[אוק]) -> 975 | M16: =SUM(tblExpenseCategory_06[נוב]) -> 975 | N16: =SUM(tblExpenseCategory_06[דצמ]) -> 975 | O16: =SUM(tblExpenseCategory_06[שנים]) -> 11,700 | P16: =SUM(tblExpenseCategory_06[ממוצע]) -> 975
B17: =LOWER(תקציב!B57) -> בריאות | C17: =SUM(tblExpenseCategory_05[ינו]) -> 25 | D17: =SUM(tblExpenseCategory_05[פבר]) -> 60 | E17: =SUM(tblExpenseCategory_05[מרץ]) -> 175 | F17: =SUM(tblExpenseCategory_05[אפר]) -> 25 | G17: =SUM(tblExpenseCategory_05[מאי]) -> 60 | H17: =SUM(tblExpenseCategory_05[יונ]) -> 60 | I17: =SUM(tblExpenseCategory_05[יול]) -> 60 | J17: =SUM(tblExpenseCategory_05[אוג]) -> 25 | K17: =SUM(tblExpenseCategory_05[ספט]) -> 175 | L17: =SUM(tblExpenseCategory_05[אוק]) -> 60 | M17: =SUM(tblExpenseCategory_05[נוב]) -> 25 | N17: =SUM(tblExpenseCategory_05[דצמ]) -> 25 | O17: =SUM(tblExpenseCategory_05[שנים]) -> 775 | P17: =SUM(tblExpenseCategory_05[ממוצע]) -> 65
B18: =LOWER(תקציב!B48) -> תחבורה | C18: =SUM(tblExpenseCategory_04[ינו]) -> 1,110 | D18: =SUM(tblExpenseCategory_04[פבר]) -> 1,025 | E18: =SUM(tblExpenseCategory_04[מרץ]) -> 925 | F18: =SUM(tblExpenseCategory_04[אפר]) -> 1,025 | G18: =SUM(tblExpenseCategory_04[מאי]) -> 1,325 | H18: =SUM(tblExpenseCategory_04[יונ]) -> 1,200 | I18: =SUM(tblExpenseCategory_04[יול]) -> 1,100 | J18: =SUM(tblExpenseCategory_04[אוג]) -> 1,200 | K18: =SUM(tblExpenseCategory_04[ספט]) -> 1,150 | L18: =SUM(tblExpenseCategory_04[אוק]) -> 1,025 | M18: =SUM(tblExpenseCategory_04[נוב]) -> 925 | N18: =SUM(tblExpenseCategory_04[דצמ]) -> 925 | O18: =SUM(tblExpenseCategory_04[שנים]) -> 12,935 | P18: =SUM(tblExpenseCategory_04[ממוצע]) -> 1,078
B19: =LOWER(תקציב!B39) -> ילדים | C19: =SUM(tblExpenseCategory_03[ינו]) -> 2,373 | D19: =SUM(tblExpenseCategory_03[פבר]) -> 500 | E19: =SUM(tblExpenseCategory_03[מרץ]) -> 350 | F19: =SUM(tblExpenseCategory_03[אפר]) -> 250 | G19: =SUM(tblExpenseCategory_03[מאי]) -> 350 | H19: =SUM(tblExpenseCategory_03[יונ]) -> 450 | I19: =SUM(tblExpenseCategory_03[יול]) -> 200 | J19: =SUM(tblExpenseCategory_03[אוג]) -> 545 | K19: =SUM(tblExpenseCategory_03[ספט]) -> 350 | L19: =SUM(tblExpenseCategory_03[אוק]) -> 350 | M19: =SUM(tblExpenseCategory_03[נוב]) -> 250 | N19: =SUM(tblExpenseCategory_03[דצמ]) -> 350 | O19: =SUM(tblExpenseCategory_03[שנים]) -> 6,318 | P19: =SUM(tblExpenseCategory_03[ממוצע]) -> 527
B20: =LOWER(תקציב!B30) -> פעולות יומיומיות | C20: =SUM(tblExpenseCategory_02[ינו]) -> 795 | D20: =SUM(tblExpenseCategory_02[פבר]) -> 375 | E20: =SUM(tblExpenseCategory_02[מרץ]) -> 550 | F20: =SUM(tblExpenseCategory_02[אפר]) -> 825 | G20: =SUM(tblExpenseCategory_02[מאי]) -> 500 | H20: =SUM(tblExpenseCategory_02[יונ]) -> 450 | I20: =SUM(tblExpenseCategory_02[יול]) -> 875 | J20: =SUM(tblExpenseCategory_02[אוג]) -> 475 | K20: =SUM(tblExpenseCategory_02[ספט]) -> 400 | L20: =SUM(tblExpenseCategory_02[אוק]) -> 825 | M20: =SUM(tblExpenseCategory_02[נוב]) -> 575 | N20: =SUM(tblExpenseCategory_02[דצמ]) -> 375 | O20: =SUM(tblExpenseCategory_02[שנים]) -> 7,020 | P20: =SUM(tblExpenseCategory_02[ממוצע]) -> 585
B21: =LOWER(תקציב!B21) -> בית | C21: =SUM(tblExpenseCategory_01[ינו]) -> 1,208 | D21: =SUM(tblExpenseCategory_01[פבר]) -> 1,208 | E21: =SUM(tblExpenseCategory_01[מרץ]) -> 1,233 | F21: =SUM(tblExpenseCategory_01[אפר]) -> 1,208 | G21: =SUM(tblExpenseCategory_01[מאי]) -> 1,158 | H21: =SUM(tblExpenseCategory_01[יונ]) -> 1,183 | I21: =SUM(tblExpenseCategory_01[יול]) -> 1,283 | J21: =SUM(tblExpenseCategory_01[אוג]) -> 1,333 | K21: =SUM(tblExpenseCategory_01[ספט]) -> 1,208 | L21: =SUM(tblExpenseCategory_01[אוק]) -> 1,158 | M21: =SUM(tblExpenseCategory_01[נוב]) -> 1,208 | N21: =SUM(tblExpenseCategory_01[דצמ]) -> 1,208 | O21: =SUM(tblExpenseCategory_01[שנים]) -> 14,596 | P21: =SUM(tblExpenseCategory_01[ממוצע]) -> 1,216
B26: תזרים מזומנים מצטבר | C26: =SUM(תקציב!$C$8:C$8) -> -3,714 | D26: =SUM(תקציב!$C$8:D$8) -> 76 | E26: =SUM(תקציב!$C$8:E$8) -> -1,857 | F26: =SUM(תקציב!$C$8:F$8) -> -3,670 | G26: =SUM(תקציב!$C$8:G$8) -> -138 | H26: =SUM(תקציב!$C$8:H$8) -> -3,731 | I26: =SUM(תקציב!$C$8:I$8) -> -7,974 | J26: =SUM(תקציב!$C$8:J$8) -> -6,827 | K26: =SUM(תקציב!$C$8:K$8) -> -8,810 | L26: =SUM(תקציב!$C$8:L$8) -> -10,753 | M26: =SUM(תקציב!$C$8:M$8) -> -6,811 | N26: =SUM(תקציב!$C$8:N$8) -> -7,769 | O26: =SUM(תקציב!$C$8:O$8) -> -15,538
B28: תזרים מזומנים שנתי חיובי | C28: =IF(תקציב!C$8<0,NA(),IF(period+2<>COLUMN(תקציב!C$8),NA(),תקציב!C$8)) ->  | D28: =IF(תקציב!D$8<0,NA(),IF(period+2<>COLUMN(תקציב!D$8),NA(),תקציב!D$8)) ->  | E28: =IF(תקציב!E$8<0,NA(),IF(period+2<>COLUMN(תקציב!E$8),NA(),תקציב!E$8)) ->  | F28: =IF(תקציב!F$8<0,NA(),IF(period+2<>COLUMN(תקציב!F$8),NA(),תקציב!F$8)) ->  | G28: =IF(תקציב!G$8<0,NA(),IF(period+2<>COLUMN(תקציב!G$8),NA(),תקציב!G$8)) ->  | H28: =IF(תקציב!H$8<0,NA(),IF(period+2<>COLUMN(תקציב!H$8),NA(),תקציב!H$8)) ->  | I28: =IF(תקציב!I$8<0,NA(),IF(period+2<>COLUMN(תקציב!I$8),NA(),תקציב!I$8)) ->  | J28: =IF(תקציב!J$8<0,NA(),IF(period+2<>COLUMN(תקציב!J$8),NA(),תקציב!J$8)) ->  | K28: =IF(תקציב!K$8<0,NA(),IF(period+2<>COLUMN(תקציב!K$8),NA(),תקציב!K$8)) ->  | L28: =IF(תקציב!L$8<0,NA(),IF(period+2<>COLUMN(תקציב!L$8),NA(),תקציב!L$8)) ->  | M28: =IF(תקציב!M$8<0,NA(),IF(period+2<>COLUMN(תקציב!M$8),NA(),תקציב!M$8)) ->  | N28: =IF(תקציב!N$8<0,NA(),IF(period+2<>COLUMN(תקציב!N$8),NA(),תקציב!N$8)) ->  | O28: =IF(תקציב!O$8<0,NA(),IF(period+2<>COLUMN(תקציב!O$8),NA(),תקציב!O$8)) -> 
B29: תזרים מזומנים שנתי שלילי | C29: =IF(תקציב!C$8>=0,NA(),IF(period+2<>COLUMN(תקציב!C$8),NA(),תקציב!C$8)) ->  | D29: =IF(תקציב!D$8>=0,NA(),IF(period+2<>COLUMN(תקציב!D$8),NA(),תקציב!D$8)) ->  | E29: =IF(תקציב!E$8>=0,NA(),IF(period+2<>COLUMN(תקציב!E$8),NA(),תקציב!E$8)) -> -1,933 | F29: =IF(תקציב!F$8>=0,NA(),IF(period+2<>COLUMN(תקציב!F$8),NA(),תקציב!F$8)) ->  | G29: =IF(תקציב!G$8>=0,NA(),IF(period+2<>COLUMN(תקציב!G$8),NA(),תקציב!G$8)) ->  | H29: =IF(תקציב!H$8>=0,NA(),IF(period+2<>COLUMN(תקציב!H$8),NA(),תקציב!H$8)) ->  | I29: =IF(תקציב!I$8>=0,NA(),IF(period+2<>COLUMN(תקציב!I$8),NA(),תקציב!I$8)) ->  | J29: =IF(תקציב!J$8>=0,NA(),IF(period+2<>COLUMN(תקציב!J$8),NA(),תקציב!J$8)) ->  | K29: =IF(תקציב!K$8>=0,NA(),IF(period+2<>COLUMN(תקציב!K$8),NA(),תקציב!K$8)) ->  | L29: =IF(תקציב!L$8>=0,NA(),IF(period+2<>COLUMN(תקציב!L$8),NA(),תקציב!L$8)) ->  | M29: =IF(תקציב!M$8>=0,NA(),IF(period+2<>COLUMN(תקציב!M$8),NA(),תקציב!M$8)) ->  | N29: =IF(תקציב!N$8>=0,NA(),IF(period+2<>COLUMN(תקציב!N$8),NA(),תקציב!N$8)) ->  | O29: =IF(תקציב!O$8>=0,NA(),IF(period+2<>COLUMN(תקציב!O$8),NA(),תקציב!O$8)) -> 
B37: =LOWER(display_long_period) -> מרץ
B38: =display_long_period & " הכנסה" -> מרץ הכנסה | C38: =INDEX(תקציב!$C$6:$P$6,,period) -> ₪ 4,000.00
B39: =display_long_period & " הוצאות: " & TEXT(INDEX(תקציב!$C$7:$P$7,,period),"$#,##0") -> מרץ הוצאות: $5,933 | C39: =INDEX(תקציב!$C$7:$P$7,,period) -> ₪ 5,933.00
B40: =display_long_period & " תזרים מזומנים" -> מרץ תזרים מזומנים | C40: =ABS(INDEX(תקציב!$C$8:$P$8,,period)) -> ₪ 1,933.00 | D40: =REPT("-",INDEX(תקציב!$C$8:$P$8,,period)<0) -> -
